fUSD/lending_fUSD_20250215
["ID","MTS","AMOUNT","RATE_DAILY","PERIOD"]
[353151842,1739613041978,-500.0,0.00012794,2]
[353151843,1739613041991,-503.85740636,0.00012794,2]
[353151844,1739613042000,-194.76708853,0.00012794,2]
[353151845,1739613042010,-500.0,0.00012794,2]
[353151846,1739613042019,-500.0,0.00012794,2]
[353151847,1739613042028,-500.0,0.00012794,2]
[353151848,1739613042038,-500.0,0.00012794,2]
[353151849,1739613042047,-501.11263963,0.00012794,2]
[353151850,1739613042058,-500.0,0.00012794,2]
[353151851,1739613042068,-500.0,0.00012794,2]
[353151852,1739613042077,-508.71092781,0.00012794,2]
[353151853,1739613042087,-153.65022207,0.00012794,2]
[353151854,1739613042096,-500.0,0.00012794,2]
[353151855,1739613042106,-500.0,0.00012794,2]
[353151856,1739613042115,-500.0,0.00012794,2]
[353151857,1739613042124,-630.95,0.00012794,2]
[353151858,1739613042134,-167.52488536,0.00012794,2]
[353151859,1739613042144,-500.0,0.00012794,2]
[353151860,1739613042153,-501.23967504,0.00012794,2]
[353151861,1739613042163,-500.0,0.00012794,2]
[353151862,1739613042172,-500.0,0.00012794,2]
[353151863,1739613042181,-500.0,0.00012794,2]
[353151864,1739613042190,-500.0,0.00012794,2]
[353151865,1739613042199,-500.0,0.00012794,2]
[353151866,1739613042208,-500.0,0.00012794,2]
[353151867,1739613042217,-500.0,0.00012794,2]
[353151868,1739613042226,-500.0,0.00012794,2]
[353151869,1739613042235,-500.0,0.00012794,2]
[353151870,1739613042244,-500.0,0.00012794,2]
[353151871,1739613042254,-500.0,0.00012794,2]
[353151872,1739613042263,-500.0,0.00012794,2]
[353151873,1739613042272,-500.0,0.00012794,2]
[353151874,1739613042281,-500.0,0.00012794,2]
[353151875,1739613042290,-500.0,0.00012794,2]
[353151876,1739613042300,-500.0,0.00012794,2]
[353151877,1739613042310,-500.0,0.00012794,2]
[353151878,1739613042319,-500.0,0.00012794,2]
[353151879,1739613042329,-500.0,0.00012794,2]
[353151880,1739613042339,-623.85,0.00012794,2]
[353151881,1739613042350,-502.14282436,0.00012794,2]
[353151882,1739613042361,-500.0,0.00012794,2]
[353151883,1739613042370,-259.25257864,0.00012794,2]
[353151884,1739613042379,-501.69146371,0.00012794,2]
[353151885,1739613042388,-500.0,0.00012794,2]
[353151886,1739613042397,-503.76665508,0.00012794,2]
[353151887,1739613042407,-307.90721663,0.00012794,2]
[353151888,1739613042417,-500.0,0.00012794,2]
[353151889,1739613042429,-500.0,0.00012794,2]
[353151890,1739613042439,-203.15045017,0.00012794,2]
[353151891,1739613042450,-500.0,0.00012794,2]
[353151892,1739613042459,-500.0,0.00012794,2]
[353151893,1739613042470,-500.0,0.00012794,2]
[353151894,1739613042481,-505.25566195,0.00012794,2]
[353151895,1739613042490,-500.0,0.00012794,2]
[353151896,1739613042499,-500.0,0.00012794,2]
[353151897,1739613042508,-504.26635637,0.00012794,2]
[353151898,1739613042517,-500.0,0.00012794,2]
[353151899,1739613042526,-500.0,0.00012794,2]
[353151900,1739613042536,-500.0,0.00012794,2]
[353151901,1739613042545,-352.35507347,0.00012794,2]
[353151902,1739613042556,-500.0,0.00012794,2]
[353151903,1739613042565,-504.55973169,0.00012794,2]
[353151904,1739613042574,-500.0,0.00012794,2]
[353151905,1739613042584,-202.32152136,0.00012794,2]
[353151906,1739613042593,-500.0,0.00012794,2]
[353151907,1739613042602,-500.0,0.00012794,2]
[353151908,1739613042611,-501.09823119,0.00012794,2]
[353151909,1739613042621,-500.0,0.00012794,2]
[353151910,1739613042630,-500.0,0.00012794,2]
[353151911,1739613042639,-500.0,0.00012794,2]
[353151912,1739613042648,-500.0,0.00012794,2]
[353151913,1739613042658,-500.0,0.00012794,2]
[353151914,1739613042667,-500.0,0.00012794,2]
[353151915,1739613042676,-500.0,0.00012794,2]
[353151916,1739613042686,-500.0,0.00012794,2]
[353151917,1739613042697,-500.0,0.00012794,2]
[353151918,1739613042708,-500.0,0.00012794,2]
[353151919,1739613042717,-582.72,0.00012794,2]
[353151920,1739613042726,-500.0,0.00012794,2]
[353151921,1739613042735,-500.0,0.00012794,2]
[353151922,1739613042744,-500.0,0.00012794,2]
[353151923,1739613042753,-501.35791039,0.00012794,2]
[353151924,1739613042762,-503.65642248,0.00012794,2]
[353151925,1739613042771,-500.0,0.00012794,2]
[353151926,1739613042780,-530.56,0.00012794,2]
[353151927,1739613042789,-500.0,0.00012794,2]
[353151928,1739613042798,-500.0,0.00012794,2]
[353151929,1739613042807,-500.0,0.00012794,2]
[353151930,1739613042816,-500.0,0.00012794,2]
[353151931,1739613042825,-500.0,0.00012794,2]
[353151932,1739613042834,-500.0,0.00012794,2]
[353151933,1739613042843,-500.0,0.00012794,2]
[353151934,1739613042852,-500.0,0.00012794,2]
[353151935,1739613042861,-55.14812424,0.00012794,2]
[353151936,1739613042973,-444.85187576,0.00012794,2]
[353151937,1739613042986,-128.76812224,0.00012794,2]
[353151938,1739613043178,-371.23187776,0.00012794,2]
[353151939,1739613043187,-90.35212224,0.00012794,2]
[353151940,1739613043198,-409.64787776,0.00012794,2]
[353151941,1739613043207,-80.6798871,0.00012794,2]
[353151942,1739613043218,-419.3201129,0.00012794,2]
[353151943,1739613043228,-285.88006132,0.00012794,2]
[353151944,1739613043239,-214.11993868,0.00012794,2]
[353151945,1739613043248,-179.92074141,0.00012794,2]
[353151946,1739613043259,-320.07925859,0.00012794,2]
[353151947,1739613043269,-67.24874141,0.00012794,2]
[353151948,1739613043469,-500.0,0.00012693,2]
[353151949,1739613043478,-500.0,0.00012775,2]
[353151950,1739613043487,-432.75125859,0.00012794,2]
[353151951,1739613043496,-505.49818297,0.00012794,2]
[353151952,1739613043506,-189.25055864,0.00012794,2]
[353151953,1739613043574,-310.74944136,0.00012794,2]
[353151954,1739613043584,-500.0,0.00012794,2]
[353151955,1739613043599,-231.34868143,0.00012794,2]
[353151956,1739613043608,-500.0,0.00012794,2]
[353151957,1739613043617,-500.83378045,0.00012794,2]
[353151958,1739613043626,-501.48597442,0.00012794,2]
[353151959,1739613043635,-500.0,0.00012794,2]
[353151960,1739613043644,-500.0,0.00012794,2]
[353151961,1739613043653,-500.0,0.00012794,2]
[353151962,1739613043662,-502.90483694,0.00012794,2]
[353151963,1739613043671,-500.0,0.00012794,2]
[353151964,1739613043680,-500.0,0.00012794,2]
[353151965,1739613043688,-500.0,0.00012794,2]
[353151966,1739613043697,-500.0,0.00012794,2]
[353151967,1739613043706,-500.0,0.00012794,2]
[353151968,1739613043715,-500.0,0.00012794,2]
[353151969,1739613043725,-500.0,0.00012794,2]
[353151970,1739613043734,-500.0,0.00012794,2]
[353151972,1739613043743,-500.0,0.00012794,2]
[353151974,1739613043753,-505.53185347,0.00012794,2]
[353151976,1739613043762,-500.0,0.00012794,2]
[353151978,1739613043771,-574.81726636,0.00012794,2]
[353151980,1739613043780,-500.0,0.00012794,2]
[353151982,1739613043789,-500.0,0.00012794,2]
[353151984,1739613043798,-500.0,0.00012794,2]
[353151986,1739613043808,-500.0,0.00012794,2]
[353151988,1739613043817,-500.0,0.00012794,2]
[353151990,1739613043826,-500.0,0.00012794,2]
[353151992,1739613043836,-500.0,0.00012794,2]
[353151994,1739613043845,-500.0,0.00012794,2]
[353151996,1739613043856,-500.0,0.00012794,2]
[353151998,1739613043865,-500.0,0.00012794,2]
[353152000,1739613043874,-511.1029284,0.00012794,2]
[353152002,1739613043883,-500.0,0.00012794,2]
[353152004,1739613043892,-500.0,0.00012794,2]
[353152006,1739613043902,-500.0,0.00012794,2]
[353152008,1739613043911,-500.0,0.00012794,2]
[353152010,1739613043921,-500.0,0.00012794,2]
[353152012,1739613043930,-500.0,0.00012794,2]
[353152014,1739613043939,-500.0,0.00012794,2]
[353152016,1739613043948,-500.0,0.00012794,2]
[353152018,1739613043958,-500.0,0.00012794,2]
[353152020,1739613043967,-503.72249523,0.00012794,2]
[353152022,1739613043978,-500.0,0.00012794,2]
[353152024,1739613043988,-500.0,0.00012794,2]
[353152026,1739613043998,-501.70268993,0.00012794,2]
[353152028,1739613044006,-500.0,0.00012794,2]
[353152030,1739613044016,-500.0,0.00012794,2]
[353152032,1739613044026,-500.0,0.00012794,2]
[353152034,1739613044035,-500.0,0.00012794,2]
[353152036,1739613044044,-500.0,0.00012794,2]
[353152038,1739613044055,-500.0,0.00012794,2]
[353152040,1739613044064,-500.0,0.00012794,2]
[353152042,1739613044074,-500.0,0.00012794,2]
[353152044,1739613044083,-500.0,0.00012794,2]
[353152046,1739613044093,-1200.0,0.00012794,2]
[353152048,1739613044103,-500.0,0.00012794,2]
[353152050,1739613044112,-500.0,0.00012794,2]
[353152052,1739613044121,-500.0,0.00012794,2]
[353152054,1739613044130,-300.12952303,0.00012794,2]
[353152056,1739613044142,-500.0,0.00012794,2]
[353152058,1739613044151,-500.0,0.00012794,2]
[353152060,1739613044160,-501.61343424,0.00012794,2]
[353152062,1739613044170,-500.0,0.00012794,2]
[353152064,1739613044179,-500.0,0.00012794,2]
[353152066,1739613044189,-500.0,0.00012794,2]
[353152068,1739613044198,-500.0,0.00012794,2]
[353152070,1739613044207,-500.0,0.00012794,2]
[353152072,1739613044217,-500.0,0.00012794,2]
[353152074,1739613044226,-502.21726729,0.00012794,2]
[353152076,1739613044235,-500.0,0.00012794,2]
[353152078,1739613044244,-634.65,0.00012794,2]
[353152080,1739613044253,-516.47719436,0.00012794,2]
[353152082,1739613044262,-500.0,0.00012794,2]
[353152084,1739613044271,-500.0,0.00012794,2]
[353152086,1739613044280,-500.0,0.00012794,2]
[353152088,1739613044289,-500.0,0.00012794,2]
[353152090,1739613044298,-501.55,0.00012794,2]
[353152092,1739613044308,-500.0,0.00012794,2]
[353152094,1739613044318,-500.0,0.00012794,2]
[353152096,1739613044327,-500.0,0.00012794,2]
[353152098,1739613044336,-500.0,0.00012794,2]
[353152100,1739613044344,-353.12578562,0.00012794,2]
[353152101,1739613044353,-500.0,0.00012794,2]
[353152103,1739613044363,-503.24398868,0.00012794,2]
[353152105,1739613044372,-500.0,0.00012794,2]
[353152107,1739613044381,-500.0,0.00012794,2]
[353152109,1739613044390,-500.0,0.00012794,2]
[353152111,1739613044399,-500.0,0.00012794,2]
[353152113,1739613044408,-500.0,0.00012794,2]
[353152115,1739613044417,-500.0,0.00012808,2]
[353152117,1739613044426,-900.0,0.00012808,2]
[353152118,1739613044435,-900.0,0.00012808,2]
[353152119,1739613044444,-500.0,0.0001282,2]
[353152120,1739613044452,-500.0,0.0001282,2]
[353152121,1739613044461,-500.0,0.0001282,2]
[353152122,1739613044470,-172.2528588,0.0001282,2]
[353152312,1739613046402,-457.14599649,0.00011616,2]
[353152548,1739613390726,150.0,0.00019863,120]
[353152551,1739613558050,1000.0,0.0002,120]
[353152552,1739613603676,500.0,0.0002,120]
[353152553,1739613609078,3000.0,0.0002,120]
[353152554,1739613640953,504.76409119,0.0002,120]
[353152579,1739613823828,5500.0,0.0002,120]
[353152581,1739613854216,3300.0,0.0002,120]
[353152584,1739613935485,1116.0,0.0002,120]
[353152585,1739613975810,5000.0,8.973e-05,2]
[353152586,1739613994620,4555.9297,8.973e-05,2]
[353152587,1739614036465,2500.0,8.851e-05,2]
[353152589,1739614076201,456.38046,0.00020655,120]
[353152591,1739614102466,1070.0,8.973e-05,2]
[353152593,1739614191564,8186.09,0.00020655,120]
[353152594,1739614215124,-458.35,9.82e-05,2]
[353152595,1739614215152,-509.66,0.00010068,2]
[353152596,1739614215180,-493.78,0.00010068,2]
[353152597,1739614215208,-504.11,0.00010068,2]
[353152598,1739614215234,-504.73,0.00010068,2]
[353152599,1739614215261,-495.92,0.00010068,2]
[353152600,1739614215287,-499.66,0.00010068,2]
[353152601,1739614215314,-504.07,0.00010068,2]
[353152602,1739614215340,-495.63,0.00010068,2]
[353152603,1739614215367,-493.3,0.00010068,2]
[353152604,1739614215396,-494.15,0.00010068,2]
[353152605,1739614215424,-509.22,0.00010068,2]
[353152606,1739614215450,-497.27,0.00010068,2]
[353152607,1739614215476,-499.77,0.00010068,2]
[353152608,1739614215502,-502.21,0.00010068,2]
[353152609,1739614215528,-493.28,0.00010068,2]
[353152610,1739614215555,-44.89,0.00010068,2]
[353152611,1739614230758,-447.94,0.00010068,2]
[353152612,1739614230784,-506.25,0.00010068,2]
[353152613,1739614230810,-490.06,0.00010068,2]
[353152614,1739614230835,-491.13,0.00010068,2]
[353152615,1739614230860,-64.62,0.00010068,2]
[353152619,1739614231428,-441.63,0.00010068,2]
[353152620,1739614231438,-499.62,0.00010068,2]
[353152621,1739614231448,-503.33,0.00010068,2]
[353152622,1739614231460,-508.12,0.00010068,2]
[353152623,1739614231470,-497.57,0.00010068,2]
[353152624,1739614231479,-499.91,0.00010068,2]
[353152625,1739614231489,-502.72,0.00010068,2]
[353152626,1739614231498,-502.45,0.00010068,2]
[353152627,1739614231508,-504.47,0.00010068,2]
[353152628,1739614231518,-505.76,0.00010068,2]
[353152629,1739614231529,-498.41,0.00010068,2]
[353152630,1739614231539,-507.09,0.00010068,2]
[353152631,1739614231548,-508.21,0.00010068,2]
[353152632,1739614231558,-498.98,0.00010068,2]
[353152633,1739614231569,-505.68,0.00010068,2]
[353152634,1739614231578,-503.19,0.00010068,2]
[353152635,1739614231588,-500.0,0.00010068,2]
[353152636,1739614231597,-340.13307347,0.00010068,2]
[353152637,1739614231606,-505.92,0.00010068,2]
[353152638,1739614231617,-499.59,0.00010068,2]
[353152639,1739614231628,-502.67,0.00010068,2]
[353152640,1739614231638,-508.78,0.00010068,2]
[353152641,1739614231648,-500.77,0.00010068,2]
[353152642,1739614231658,-497.59,0.00010068,2]
[353152643,1739614231669,-500.07,0.00010068,2]
[353152644,1739614231680,-800.0,0.00010068,2]
[353152645,1739614231690,-154.63,0.00010137,2]
[353152646,1739614231700,-3916.0,0.00010521,2]
[353152647,1739614231710,-150.0,0.00010521,2]
[353152660,1739614231983,-638.0,0.00010755,2]
[353152662,1739614231992,-1352.573,0.00010755,2]
[353152664,1739614232003,-1100.0,0.00011,2]
[353152666,1739614232012,-500.0,0.00011164,2]
[353152668,1739614232022,-700.0,0.00011164,2]
[353152669,1739614232032,-800.0,0.00011438,2]
[353152670,1739614232041,-178.33,0.00011554,2]
[353152671,1739614232051,-537.29,0.000116,2]
[353152672,1739614232061,-1000.0,0.00011605,2]
[353152674,1739614232071,-51.42400351,0.00011616,2]
[353152676,1739614232080,-150.0,0.00011686,2]
[353152678,1739614232089,-1220.7773095,0.00012,3]
[353152680,1739614232098,-1000.0,0.00012,2]
[353152682,1739614232107,-458.35,0.00012084,2]
[353152683,1739614232116,-522.0,0.00012161,2]
[353152686,1739614232126,-501.64,0.00012404,2]
[353152687,1739614232135,-411.08242279,0.00012437,2]
[353152690,1739614232144,-501.2,0.00012485,2]
[353152693,1739614232153,-700.0,0.00012534,2]
[353152696,1739614232163,-171.397,0.00012534,2]
[353152699,1739614232172,-2713.685,0.00012534,2]
[353152702,1739614232181,-1000.0,0.00012566,2]
[353152705,1739614232190,-1000.0,0.00012566,2]
[353152708,1739614232200,-1000.0,0.00012566,2]
[353152710,1739614232209,-1000.0,0.00012566,2]
[353152713,1739614232219,-1000.0,0.00012566,2]
[353152716,1739614232228,-1000.0,0.00012566,2]
[353152719,1739614232238,-1000.0,0.00012566,2]
[353152722,1739614232247,-1000.0,0.00012566,2]
[353152725,1739614232256,-1000.0,0.00012566,2]
[353152728,1739614232265,-1000.0,0.00012566,2]
[353152730,1739614232275,-500.0,0.00012574,2]
[353152733,1739614232284,-500.0,0.00012574,2]
[353152735,1739614232293,-501.61570872,0.00012574,2]
[353152737,1739614232302,-165.81712174,0.00012574,2]
[353152739,1739614232311,-500.0,0.00012574,2]
[353152741,1739614232320,-500.0,0.00012574,2]
[353152742,1739614232329,-500.0,0.00012574,2]
[353152744,1739614232339,-500.0,0.00012574,2]
[353152746,1739614232349,-500.0,0.00012574,2]
[353152748,1739614232359,-500.0,0.00012574,2]
[353152750,1739614232369,-500.0,0.00012574,2]
[353152752,1739614232382,-500.0,0.00012574,2]
[353152754,1739614232392,-500.0,0.00012574,2]
[353152757,1739614232401,-500.0,0.00012574,2]
[353152758,1739614232410,-500.0,0.00012574,2]
[353152761,1739614232421,-500.0,0.00012574,2]
[353152762,1739614232430,-163.64494093,0.00012693,2]
[353152764,1739614232440,-329.21850851,0.00012693,2]
[353152766,1739614232449,-1000.0,0.000127,2]
[353152768,1739614232460,-872.4348535,0.00012739,2]
[353152770,1739614232470,-150.0,0.00012763,2]
[353152772,1739614232479,-150.0,0.00012786,2]
[353152774,1739614232489,-150.0,0.00012787,2]
[353152776,1739614232498,-150.0,0.00012788,2]
[353152779,1739614232507,-150.0,0.00012789,2]
[353152780,1739614232517,-500.0,0.00012792,2]
[353152782,1739614232526,-500.0,0.00012792,2]
[353152784,1739614232536,-500.0,0.00012792,2]
[353152786,1739614232545,-500.0,0.00012792,2]
[353152788,1739614232554,-1314.866743,0.00012792,2]
[353152790,1739614232563,-500.0,0.00012792,2]
[353152792,1739614232573,-160.450786,0.00012792,2]
[353152793,1739614232582,-500.0,0.00012792,2]
[353152794,1739614232591,-500.0,0.00012792,2]
[353152795,1739614232600,-500.0,0.00012792,2]
[353152796,1739614232610,-500.0,0.00012792,2]
[353152797,1739614232619,-500.0,0.00012792,2]
[353152798,1739614232629,-500.0,0.00012792,2]
[353152799,1739614232638,-500.0,0.00012792,2]
[353152800,1739614232647,-500.0,0.00012792,2]
[353152801,1739614232657,-1024.26,0.00012792,2]
[353152802,1739614232667,-500.0,0.00012792,2]
[353152803,1739614232677,-1265.427403,0.00012792,2]
[353152805,1739614232686,-500.0,0.00012792,2]
[353152807,1739614232696,-1365.1,0.00012792,2]
[353152809,1739614232706,-500.0,0.00012792,2]
[353152811,1739614232715,-627.95,0.00012792,2]
[353152812,1739614232726,-500.0,0.00012792,2]
[353152815,1739614232736,-507.63,0.00012792,2]
[353152817,1739614232745,-500.0,0.00012792,2]
[353152818,1739614232755,-500.0,0.00012792,2]
[353152821,1739614232764,-500.0,0.00012792,2]
[353152823,1739614232774,-554.84,0.00012792,2]
[353152824,1739614232783,-150.0,0.00012792,2]
[353152826,1739614232792,-500.0,0.00012792,2]
[353152828,1739614232803,-500.0,0.00012792,2]
[353152831,1739614232814,-1011.9,0.00012792,2]
[353152833,1739614232823,-862.31,0.00012792,2]
[353152834,1739614232833,-500.0,0.00012792,2]
[353152837,1739614232842,-500.0,0.00012792,2]
[353152838,1739614232852,-500.0,0.00012792,2]
[353152840,1739614232861,-555.17,0.00012792,2]
[353152842,1739614232870,-639.43,0.00012792,2]
[353152844,1739614232880,-500.0,0.00012792,2]
[353152846,1739614232889,-500.0,0.00012792,2]
[353152848,1739614232898,-500.0,0.00012792,2]
[353152850,1739614232908,-500.0,0.00012792,2]
[353152852,1739614232917,-602.18,0.00012792,2]
[353152854,1739614232926,-500.0,0.00012792,2]
[353152856,1739614232936,-500.0,0.00012792,2]
[353152858,1739614232945,-500.0,0.00012792,2]
[353152860,1739614232955,-990.22,0.00012792,2]
[353152862,1739614232964,-500.0,0.00012792,2]
[353152864,1739614232974,-500.0,0.00012792,2]
[353152866,1739614232983,-500.0,0.00012792,2]
[353152868,1739614232992,-500.0,0.00012792,2]
[353152870,1739614233002,-500.0,0.00012792,2]
[353152872,1739614233011,-528.12,0.00012792,2]
[353152874,1739614233021,-500.0,0.00012792,2]
[353152876,1739614233030,-750.83,0.00012792,2]
[353152878,1739614233040,-500.0,0.00012792,2]
[353152880,1739614233050,-588.39,0.00012792,2]
[353152882,1739614233059,-295.89613027,0.00012792,2]
[353152885,1739614233074,-204.10386973,0.00012792,2]
[353152886,1739614233084,-114.88949388,0.00012792,2]
[353152889,1739614233096,-385.11050612,0.00012792,2]
[353152891,1739614233105,-500.0,0.00012792,2]
[353152893,1739614233115,-500.0,0.00012792,2]
[353152895,1739614233124,-500.0,0.00012792,2]
[353152897,1739614233134,-500.0,0.00012792,2]
[353152899,1739614233143,-1454.86,0.00012792,2]
[353152901,1739614233154,-61.54956368,0.00012792,2]
[353152903,1739614233166,-438.45043632,0.00012792,2]
[353152905,1739614233175,-500.0,0.00012792,2]
[353152907,1739614233184,-86.10956368,0.00012792,2]
[353152909,1739614233197,-413.89043632,0.00012792,2]
[353152911,1739614233206,-52.53886407,0.00012793,3]
[353152919,1739614233272,-606.55715538,0.00012793,3]
[353152946,1739614233529,-11437.23281721,0.00012793,3]
[353153323,1739614237296,-500.0,0.00012792,2]
[353153325,1739614237305,-500.0,0.00012792,2]
[353153327,1739614237315,-500.0,0.00012792,2]
[353153329,1739614237324,-157.30049075,0.00012793,3]
[353153331,1739614237334,-14080.40265351,0.00012793,3]
[353153337,1739614237375,-3787.70040471,0.00012793,3]
[353153339,1739614237390,-693.43710831,0.00012793,3]
[353153341,1739614237402,-500.0,0.00012793,3]
[353153343,1739614237414,-1109.76612253,0.00012793,3]
[353153348,1739614237510,-535.39850091,0.00012793,3]
[353153353,1739614237566,-1863.29899157,0.00012793,3]
[353153360,1739614237622,-510.0000005,0.00012793,3]
[353153362,1739614237632,-902.48955533,0.00012793,3]
[353153489,1739614239644,-500.0,0.00012792,2]
[353153490,1739614239653,-120579.00087651,0.00012793,3]
[353153491,1739614239664,-97301.99706549,0.00012793,3]
[353153492,1739614239674,-63152.49260971,0.00012793,2]
[353153493,1739614239701,-902.94,0.00012792,2]
[353153494,1739614239710,-230.11,0.00012793,2]
[353153495,1739614239757,-293.86311004,0.00012793,2]
[353153496,1739614239768,-1344.63390001,0.00012793,2]
[353153497,1739614239779,-299.89956351,0.00012793,2]
[353153498,1739614239812,-350.0580771,0.00012793,2]
[353153499,1739614239987,-598.51453168,0.00012793,2]
[353153507,1739614242442,-500.0,0.00012792,2]
[353153508,1739614242452,-500.0,0.00012792,2]
[353153509,1739614242463,-502.38,0.00012792,2]
[353153510,1739614242473,-27586.84914761,0.00012793,2]
[353153511,1739614242482,-500.0,0.00012793,2]
[353153512,1739614242492,-500.0,0.00012793,2]
[353153513,1739614242500,-500.0,0.00012793,2]
[353153514,1739614242510,-500.0,0.00012793,2]
[353153515,1739614242519,-500.0,0.00012793,2]
[353153516,1739614242529,-500.0,0.00012793,2]
[353153517,1739614242539,-500.0,0.00012793,2]
[353153518,1739614242549,-500.0,0.00012793,2]
[353153519,1739614242561,-500.0,0.00012793,2]
[353153520,1739614242571,-500.0,0.00012793,2]
[353153521,1739614242581,-500.0,0.00012793,2]
[353153522,1739614242591,-500.0,0.00012793,2]
[353153523,1739614242600,-500.0,0.00012793,2]
[353153524,1739614242610,-500.0,0.00012793,2]
[353153525,1739614242619,-544.24473178,0.00012793,2]
[353153526,1739614242629,-500.0,0.00012793,2]
[353153527,1739614242638,-500.0,0.00012793,2]
[353153528,1739614242648,-500.0,0.00012793,2]
[353153529,1739614242656,-500.0,0.00012793,2]
[353153530,1739614242666,-500.0,0.00012793,2]
[353153531,1739614242675,-500.0,0.00012793,2]
[353153532,1739614242684,-500.0,0.00012793,2]
[353153533,1739614242695,-500.0,0.00012793,2]
[353153534,1739614242705,-500.0,0.00012793,2]
[353153535,1739614242714,-500.0,0.00012793,2]
[353153536,1739614242724,-500.0,0.00012793,2]
[353153537,1739614242733,-500.0,0.00012793,2]
[353153538,1739614242742,-500.0,0.00012793,2]
[353153539,1739614242752,-500.0,0.00012793,2]
[353153540,1739614242762,-500.0,0.00012793,2]
[353153541,1739614242771,-544.88,0.00012793,2]
[353153542,1739614242780,-500.0,0.00012793,2]
[353153543,1739614242790,-500.0,0.00012793,2]
[353153544,1739614242799,-500.52709623,0.00012793,2]
[353153545,1739614242808,-500.0,0.00012793,2]
[353153546,1739614242817,-500.0,0.00012793,2]
[353153547,1739614242826,-500.0,0.00012793,2]
[353153548,1739614242835,-321.32463534,0.00012793,2]
[353153549,1739614242844,-500.0,0.00012793,2]
[353153550,1739614242853,-500.0,0.00012793,2]
[353153551,1739614242862,-500.0,0.00012793,2]
[353153552,1739614242871,-500.0,0.00012793,2]
[353153553,1739614242881,-500.0,0.00012793,2]
[353153555,1739614242890,-500.0,0.00012793,2]
[353153557,1739614242899,-500.0,0.00012793,2]
[353153558,1739614242908,-500.0,0.00012793,2]
[353153559,1739614242918,-500.0,0.00012793,2]
[353153560,1739614242927,-500.0,0.00012793,2]
[353153562,1739614242936,-500.0,0.00012793,2]
[353153564,1739614242945,-500.0,0.00012793,2]
[353153565,1739614242955,-500.0,0.00012793,2]
[353153567,1739614242964,-500.0,0.00012793,2]
[353153568,1739614242973,-500.0,0.00012793,2]
[353153569,1739614242983,-500.0,0.00012793,2]
[353153570,1739614242992,-500.0,0.00012793,2]
[353153571,1739614243001,-500.0,0.00012793,2]
[353153572,1739614243011,-501.64952675,0.00012793,2]
[353153573,1739614243020,-500.0,0.00012793,2]
[353153574,1739614243029,-500.0,0.00012793,2]
[353153575,1739614243039,-500.0,0.00012793,2]
[353153576,1739614243048,-500.0,0.00012793,2]
[353153577,1739614243057,-500.0,0.00012793,2]
[353153578,1739614243068,-500.0,0.00012793,2]
[353153579,1739614243077,-614.67,0.00012793,2]
[353153580,1739614243087,-500.0,0.00012793,2]
[353153581,1739614243096,-500.0,0.00012793,2]
[353153582,1739614243106,-500.0,0.00012793,2]
[353153583,1739614243115,-500.0,0.00012793,2]